{"text_format":"1","workbook":"xlsx","n_sheets":1,"sheets":["Relatório Liquidação"],"not_rendered":{"charts":0,"images":1,"macros":0,"external_links":2,"defined_names":9,"comments":0,"pivot_tables":0},"unopened":[],"bounds":{"document_bytes":16777216,"sheet_cells":100000,"rows_first":2000,"rows_last":500,"rows_between":2000,"halvings":0,"cell_chars":16384,"cell_head_chars":4096},"cells_cut":0,"cells_raw":0,"read":"whole","date_system":"1900"}

{"sheet":"Relatório Liquidação","index":0,"n_rows":74,"n_cols":25,"rows_kept":74,"cut":false,"hidden":false,"merged":[]}
[null,null,null,null,null,null,null,null,null,null,null,null,null,null,null,null,null,null,null,null,null,null,null,-4.1836756281554699E-11]
[null,null,null,null,"CRI Itaperapuã - Mapa de Liquidação"]
[]
[]
[]
[]
[null,"Natureza do Pagamento","Série","Data ","PU\nLiquidação","Quantidade","Lançamento","Razão Social","CNPJ","Número","Banco","Agência","Conta","ISS","Valor do Serviço","Gross-Up","Valor Bruto NF","Retenção NF","Retenção","Valor","Observação","Enviado para pagamento"]
[null,"Integralização",487,"2021-07-30",1000,4200,"Integralização",null,null,null,null,null,null,null,null,null,null,null,null,{"$f":"E8*F8","v":4200000},null,null,"SIM"]
[null,"Integralização",488,"2021-07-30",1000,2800,"Integralização",null,null,null,null,null,null,null,null,null,null,null,null,{"$f":"E9*F9","v":2800000},null,null,"SIM (PAGO)"]
[null,"Integralização",0,"2021-07-30",0,0,"Integralização",null,null,null,null,null,null,null,null,null,null,null,null,0,null,null,"SIM (PAGO  PARCIALMENTE - Saldo restante: Valor)"]
[null,"Integralização",0,"2021-07-30",0,0,"Integralização",null,null,null,null,null,null,null,null,null,null,null,null,0]
[null,"Integralização",0,"2021-07-30",0,0,"Integralização",null,null,null,null,null,null,null,null,null,null,null,null,0]
[null,"Integralização",0,"2021-07-30",0,0,"Integralização",null,null,null,null,null,null,null,null,null,null,null,null,0]
[null,"Integralização","Total Dia",null,null,null,"Total Integralização",null,null,null,null,null,null,null,null,null,null,null,null,{"$f":"SUM(T8:T13)","v":7000000}]
[null,"Transferência",null,null,null,null,"Fee Estruturação","Forte securitização e participações LTDA","21.567.223/0001-05",341,"Itaú Unibanco S.A.","0869-8","12663-1","N/A",{"$f":"2%*T14","v":140000},0.1115,{"$f":"O15/(1-P15)","v":157568.93640967924},6.1499999999999999E-2,{"$f":"R15*Q15","v":9690.4895891952729},{"$f":"Q15*(1-R15)","v":147878.44682048398}]
[null,"Transferência",null,null,null,null,"Taxa de Sucesso","Forte securitização e participações LTDA","21.567.223/0001-05",341,"Itaú Unibanco S.A.","0869-8","12663-1","N/A",{"$f":"2%*T14","v":140000},0.1115,{"$f":"O16/(1-P16)","v":157568.93640967924},6.1499999999999999E-2,{"$f":"R16*Q16","v":9690.4895891952729},{"$f":"Q16*(1-R16)","v":147878.44682048398}]
[null,"Transferência",null,null,null,null,"Comissão Firme","Forte Securitizadora S.A","12.979.898/0001-70",341,"Itaú Unibanco S.A.","0869-8","13447-8","N/A",0,9.6500000000000002E-2,0,6.1499999999999999E-2,0,0]
[null,"Transferência",null,null,null,null,"Originador","-","-",{"$error":"#N/A"},{"$error":"#N/A"},"-","-","",0,0,0,0,0,0]
[null,"Aguardar Transferência",null,null,null,null,"Advogados - Terceiros","","","","","","","",0,0,0,0,0,0]
[null,"Aguardar Transferência",null,null,null,null,"Companhia Hipotecária","COMPANHIA HIPOTECÁRIA PIRATINI","18.282.093/0001-50",237,"Banco Bradesco S.A.",3145,"21476-0","N/A",0,9.6500000000000002E-2,0,6.1499999999999999E-2,0,0]
[null,"Aguardar Transferência",null,null,null,null,"Advogados - Assessoria","Binari e Santos Sociedade de Advogados","29.333.942/0001-73","","","","","",94000,0,94000,0,0,94000]
[null,"Aguardar Transferência",null,null,null,null,"Coordenador Líder","TERRA INVESTIMENTOS DTVM LTDA.","03.751.794/0001-13",237,"Banco Bradesco S.A.",560,"0156021-2","N/A",12050,9.6500000000000002E-2,13337.022689540676,0,0,13337.022689540676,null,"SIM"]
[null,"Aguardar Transferência",null,null,null,null,"Engenharia","HARCA ENGENHARIA EIRELI - ME","20.620.442/0001-48","003","Caixa Econômica Federal",1959,"00000620-5","SIM",0,0,0,0,0,0]
[null,"Aguardar Transferência",null,null,null,null,"Auditoria Complementar","CONVESTE AUDFILES SERVICOS FINANCEIROS LTDA","29.758.816/0001-60",341,"Itaú Unibanco S.A.",6630,"43542-5","N/A",10000,0.1115,11254.924029262804,6.1499999999999999E-2,692.1778277996624,10562.746201463142,null,"SIM"]
[null,"Aguardar Transferência",null,null,null,null,"Auditoria Financeira","CONVESTE AUDFILES SERVICOS FINANCEIROS LTDA","29.758.816/0001-60",341,"Itaú Unibanco S.A.",6630,"43542-5","N/A",0,0.1115,0,6.1499999999999999E-2,0,0]
[null,"Aguardar Transferência",null,null,null,null,"Implantação","CONVESTE AUDFILES SERVICOS FINANCEIROS LTDA","29.758.816/0001-60",341,"Itaú Unibanco S.A.",6630,"43542-5","N/A",0,0.1115,0,6.1499999999999999E-2,0,0]
[null,"Aguardar Transferência",null,null,null,null,"Agente Fiduciário","SIMPLIFIC PAVARINI DISTRIBUIDORA DE TÍTULOS E VALORES MOBILIÁRIOS LTDA.","15.227.994/0001-50",237,"Banco Bradesco S.A.","3428-2","714.443-1","N/A",18000,9.6500000000000002E-2,19922.523519645823,6.1499999999999999E-2,1225.2351964582181,18697.288323187604,null,"SIM"]
[null,"Aguardar Transferência",null,null,null,null,"Agente Custodiante","SIMPLIFIC PAVARINI DISTRIBUIDORA DE TÍTULOS E VALORES MOBILIÁRIOS LTDA.","15.227.994/0001-50",237,"Banco Bradesco S.A.","3428-2","714.443-1","N/A",3500,9.6500000000000002E-2,3873.8240177089101,6.1499999999999999E-2,238.24017708909795,3635.5838406198122,null,"SIM"]
[null,"Aguardar Transferência",null,null,null,null,"Agente Registrador CCI","SIMPLIFIC PAVARINI DISTRIBUIDORA DE TÍTULOS E VALORES MOBILIÁRIOS LTDA.","15.227.994/0001-50",237,"Banco Bradesco S.A.","3428-2","714.443-1","N/A",43140,9.6500000000000002E-2,47747.64803541782,6.1499999999999999E-2,2936.4803541781957,44811.167681239625,null,"SIM"]
[null,"Aguardar Transferência",null,null,null,null,"Agente Fiduciário - 1ª parcela","SIMPLIFIC PAVARINI DISTRIBUIDORA DE TÍTULOS E VALORES MOBILIÁRIOS LTDA.","15.227.994/0001-50",237,"Banco Bradesco S.A.","3428-2","714.443-1","N/A",0,9.6500000000000002E-2,0,6.1499999999999999E-2,0,0]
[null,"Aguardar Transferência",null,null,null,null,"Despachante","Duudocs Serviços Administrativos Ltda","32.437.359/0001-17",341,"Itaú Unibanco S.A.","0350","32511-4","N/A",5700,0,5700,0,0,5700]
[null,"Provisão de Despesas ",null,null,null,null,"Registro CCI B3 (Débito Automático)","Forte Securitizadora S/A","12.979.898/0001-70",null,null,null,null,null,null,null,null,null,{"$f":"+R32*Q32","v":0},0]
[null,"Provisão de Despesas ",null,null,null,null,"Registro CRI B3 (Débito Automático)","Forte Securitizadora S/A","12.979.898/0001-70",null,null,null,null,null,null,null,null,null,0,5000]
[null,"Provisão de Despesas ",null,null,null,null,"Custos Mov. CRI/CCI B3 (Estimado-Deb. Aut.)","Forte Securitizadora S/A","12.979.898/0001-70",null,null,null,null,null,null,null,null,null,0,0]
[null,"Provisão de Despesas ",null,null,null,null,"Análise B3","Forte Securitizadora S/A","12.979.898/0001-70",null,null,null,null,null,null,null,null,null,{"$f":"+R35*Q35","v":0},0]
[null,"Provisão de Despesas ",null,null,null,null,"Taxa de Registro - Anbima","Forte Securitizadora S/A","12.979.898/0001-70",null,null,null,null,null,null,null,null,null,{"$f":"+R36*Q36","v":0},{"$f":"'[2]Criar Mapa'!K25","v":1568}]
[null,"Provisão de Despesas ",null,null,null,null,"Rating","Forte Securitizadora S/A","12.979.898/0001-70",null,null,null,null,null,null,null,null,null,{"$f":"+R37*Q37","v":0},{"$f":"'[2]Criar Mapa'!K26","v":26660}]
[null,"Provisão de Despesas ",null,null,null,null,"IOF","Forte Securitizadora S/A","12.979.898/0001-70",null,null,null,null,null,null,null,null,null,{"$f":"+R38*Q38","v":0},{"$f":"'[2]Criar Mapa'!K27","v":0}]
[null,"Provisão de Despesas ",null,null,null,null,"Provisão Diversa - Advogado","","","","","","","",0,0,{"$f":"O39/(1-P39)","v":0},0,{"$f":"R39*Q39","v":0},{"$f":"Q39*(1-R39)","v":0}]
[null,null,null,null,null,null,"Retenção de Impostos sobre NFs",null,null,null,null,null,null,null,null,null,null,null,null,{"$f":"SUM(T41:T51)","v":24473.112733915721}]
[null,"Retenção de Impostos",null,null,null,null,"Imposto - Fortesec","Forte Securitizadora S.A","12.979.898/0001-70",null,null,null,null,null,null,null,null,null,null,{"$f":"SUMIF($I$15:$I$39,I41,$S$15:$S$39)","v":0}]
[null,"Retenção de Impostos",null,null,null,null,"Imposto - FortePar","Forte securitização e participações LTDA","21.567.223/0001-05",null,null,null,null,null,null,null,null,null,null,{"$f":"SUMIF($I$15:$I$39,I42,$S$15:$S$39)","v":19380.979178390546}]
[null,"Retenção de Impostos",null,null,null,null,"Imposto -  Originador","-","-",null,null,null,null,null,null,null,null,null,null,{"$f":"SUMIF($I$15:$I$39,I43,$S$15:$S$39)","v":0}]
[null,"Retenção de Impostos",null,null,null,null,"Imposto - Assessor Legal Terceiros","","",null,null,null,null,null,null,null,null,null,null,0]
[null,"Retenção de Impostos",null,null,null,null,"Imposto - Companhia Hipotecária","COMPANHIA HIPOTECÁRIA PIRATINI","18.282.093/0001-50",null,null,null,null,null,null,null,null,null,null,{"$f":"SUMIF($I$15:$I$39,I45,$S$15:$S$39)","v":0}]
[null,"Retenção de Impostos",null,null,null,null,"Imposto - Assessor Legal","","",null,null,null,null,null,null,null,null,null,null,{"$f":"SUMIF($I$15:$I$39,I46,$S$15:$S$39)","v":0}]
[null,"Retenção de Impostos",null,null,null,null,"Imposto - Coordenador Líder","TERRA INVESTIMENTOS DTVM LTDA.","03.751.794/0001-13",null,null,null,null,null,null,null,null,null,null,0]
[null,"Retenção de Impostos",null,null,null,null,"Imposto - Engenharia","HARCA ENGENHARIA EIRELI - ME","20.620.442/0001-48",null,null,null,null,null,null,null,null,null,null,0]
[null,"Retenção de Impostos",null,null,null,null,"Imposto - Auditoria","CONVESTE AUDFILES SERVICOS FINANCEIROS LTDA","29.758.816/0001-60",null,null,null,null,null,null,null,null,null,null,692.1778277996624]
[null,"Retenção de Impostos",null,null,null,null,"Imposto - Agente Fiduciário","SIMPLIFIC PAVARINI DISTRIBUIDORA DE TÍTULOS E VALORES MOBILIÁRIOS LTDA.","15.227.994/0001-50",null,null,null,null,null,null,null,null,null,null,4399.9557277255117,null,null,null,null,"Integralização"]
[null,"Retenção de Impostos",null,null,null,null,"Imposto - Agente Custodiante","-","-",null,null,null,null,null,null,null,null,null,null,0,null,null,null,null,"Integralização"]
[null,"Transferência",null,null,null,null,"Reembolso Despesas","Forte Securitizadora S/A","12.979.898/0001-70",341,"Itaú Unibanco S.A.","0869","13447-8",null,null,null,null,null,null,0]
[null,"Transferência",null,null,null,null,"Retenção de PMT","Forte Securitizadora S/A","12.979.898/0001-70",341,"Itaú Unibanco S.A.","0869","17312-0",null,null,null,null,null,null,129307.69]
[null,"Transferência",null,null,null,null,"Quitação de Dividas","Forte Securitizadora S/A","12.979.898/0001-70",341,"Itaú Unibanco S.A.","0869","17312-0",null,null,null,null,null,null,0]
[null,"Transferência",null,null,null,null,"Fundo de Juros","Forte Securitizadora S/A","12.979.898/0001-70",341,"Itaú Unibanco S.A.","0869","17312-0",null,null,null,null,null,null,0]
[null,"Transferência",null,null,null,null,"Fundo de Concessão","Forte Securitizadora S/A","12.979.898/0001-70",341,"Itaú Unibanco S.A.","0869","17312-0",null,null,null,null,null,null,0]
[null,"Transferência",null,null,null,null,"Fundo de Despesa","Forte Securitizadora S/A","12.979.898/0001-70",341,"Itaú Unibanco S.A.","0869","17312-0",null,null,null,null,null,null,{"$f":"'[2]Criar Mapa'!K34","v":0}]
[null,"Transferência",null,null,null,null,"Fundo de Reserva","Forte Securitizadora S/A","12.979.898/0001-70",341,"Itaú Unibanco S.A.","0869","17312-0",null,null,null,null,null,null,{"$f":"'[2]Criar Mapa'!K35","v":292737.03000000003}]
[null,"Transferência",null,null,null,null,"Fundo de Obra","Forte Securitizadora S/A","12.979.898/0001-70",341,"Itaú Unibanco S.A.","0869","17312-0",null,null,null,null,null,null,{"$f":"'[2]Criar Mapa'!K36","v":0}]
[null,"Transferência",null,null,null,null,"Fundo Diverso 1","Forte Securitizadora S/A","12.979.898/0001-70",341,"Itaú Unibanco S.A.","0869","17312-0",null,null,null,null,null,null,{"$f":"'[2]Criar Mapa'!K37","v":0}]
[null,"Transferência",null,null,null,null,"Fundo Diverso 2","Forte Securitizadora S/A","12.979.898/0001-70",341,"Itaú Unibanco S.A.","0869","17312-0",null,null,null,null,null,null,{"$f":"'[2]Criar Mapa'!K38","v":0}]
[null,"Transferência",null,null,null,null,"Livre Destinação","ENCANTOS DE ITAPERAPUÃ APART SERVICE LTDA.","20.554.843/0001-47",756,"Banco Cooperativo do Brasil S.A. - Bancoob",4198,"15339-7",null,null,null,null,null,null,{"$f":"-SUM(-T14,T15:T40,T53:T58,T63)","v":1180214.2448890666}]
[null,"Transferência",null,null,null,null,"Livre Destinação - Por Conta e Ordem",null,null,null,null,null,null,null,null,null,null,null,null,4853539.22]
[null,"Total Dia",null,null,null,null,null,null,null,null,null,null,null,null,null,null,null,null,null,{"$f":"-SUM(-T14,T15:T40,T52:T63)","v":0},null,null,null,null,"Reembolso Forte"]
[]
[]
[null,null,null,null,null,null,null,null,null,null,null,null,null,null,null,null,null,null,null,"Check Impostos",{"$f":"ROUND(T40,2)=ROUND(SUM(S14:S64),2)","v":true}]
[]
[null,null,null,null,null,null,null,null,null,null,null,null,null,null,null,null,null,null,null,0]
[]
[]
[]
[]
[null,null,null,null,null,null,null,"Forte Securitizadora S.A."]